[Event "57th Biel Festival MTO 2024"]
[White "Udipi,Kala Kishan"]
[Black "Cervantes Landeiro,Thalia"]
[Site "Biel"]
[Round "3.38"]
[Annotator "RC"]
[Result "0-1"]
[Date "2024.07.17"]
[WhiteElo "2051"]
[BlackElo "2271"]
[PlyCount "156"]
[TimeControl "60"]

1. d4 {[%emt 0:0:2]} Nf6 {[%emt 0:0:10]} 2. c4 {[%emt 0:0:5]} g6 {[%emt 0:0:5]} 3. Nc3 {[%emt 0:0:9]} d5 {[%emt 0:0:7]} 4. Bf4 {[%emt 0:0:13]} Bg7 {[%emt 0:0:14]} 5. e3 {[%emt 0:1:53]} O-O {[%emt 0:0:28]} 6. Rc1 {[%emt 0:0:9]} Be6 {[%emt 0:0:59]} 7. c5 {[%emt 0:0:48]} c6 {[%emt 0:0:26]} 8. Nf3 {[%emt 0:1:23]} b6 {[%emt 0:9:34]} 9. cxb6 {[%emt 0:0:51]} axb6 {[%emt 0:1:28]} 10. Bd3 {[%emt 0:3:40]} Nh5 {[%emt 0:10:42]} 11. Bg3 {[%emt 0:3:19]} c5 {[%emt 0:15:44]} 12. Bh4 {[%emt 0:5:4]} Nc6 {[%emt 0:6:37]} 13. Bb5 {[%emt 0:2:23]} Na7 {[%emt 0:3:20]} 14. Be2 {[%emt 0:3:16]} Nf6 {[%emt 0:4:45]} 15. O-O {[%emt 0:1:52]} c4 {[%emt 0:7:48]} 16. Bxf6 {[%emt 0:22:26]} exf6 {[%emt 0:15:49]} 17. e4 {[%emt 0:4:39]} dxe4 {[%emt 0:3:11]} 18. Nxe4 {[%emt 0:0:53]} Re8 {[%emt 0:1:18]} 19. Re1 {[%emt 0:12:23]} b5 {[%emt 0:5:9]} 20. a4 {[%emt 0:2:46]} Bh6 {[%emt 0:5:22]} 21. Ra1 {[%emt 0:0:56]} f5 {[%emt 0:3:20]} 22. Nc5 {[%emt 0:0:35]} Bd5 {[%emt 0:0:17]} 23. Qc2 {[%emt 0:7:23]} Rc8 {[%emt 0:4:48]} 24. axb5 {[%emt 0:1:35]} Nxb5 {[%emt 0:0:9]} 25. Na4 {[%emt 0:31:29]} Bxf3 {[%emt 0:1:16]} 26. Bxf3 {[%emt 0:0:1]} Nxd4 {[%emt 0:1:36]} 27. Rxe8+ {[%emt 0:1:11]} Qxe8 {[%emt 0:0:2]} 28. Qd1 {[%emt 0:0:39]} Nxf3+ {[%emt 0:2:22]} 29. Qxf3 {[%emt 0:0:2]} Ra8 {[%emt 0:0:37]} 30. Qd1 {[%emt 0:0:38]} Bg7 {[%emt 0:2:1]} 31. Nc3 {[%emt 0:1:43]} Rxa1 {[%emt 0:0:48]} 32. Qxa1 {[%emt 0:0:1]} h5 {[%emt 0:1:13]} 33. h3 {[%emt 0:0:42]} Bd4 {[%emt 0:0:49]} 34. Qf1 {[%emt 0:0:29]} Qe6 {[%emt 0:1:1]} 35. Qd1 {[%emt 0:0:37]} Qe5 {[%emt 0:0:38]} 36. Qd2 {[%emt 0:0:46]} h4 {[%emt 0:1:11]} 37. Kf1 {[%emt 0:0:23]} Kg7 {[%emt 0:1:50]} 38. Nd1 {[%emt 0:0:22]} Qc5 {[%emt 0:0:56]} 39. Ne3 {[%emt 0:1:13]} f4 {[%emt 0:1:9]} 40. Nd1 {[%emt 0:0:43]} Be5 {[%emt 0:0:32]} 41. Nc3 {[%emt 0:3:29]} Qc6 {[%emt 0:10:2]} 42. Qe2 {[%emt 0:3:4]} f6 {[%emt 0:11:49]} 43. Ne4 {[%emt 0:2:14]} Bxb2 {[%emt 0:11:11]} 44. Qxb2 {[%emt 0:1:7]} Qxe4 {[%emt 0:0:8]} 45. Qc3 {[%emt 0:0:5]} Qd5 {[%emt 0:2:12]} 46. f3 {[%emt 0:1:34]} Qc5 {[%emt 0:2:18]} 47. Qc2 {[%emt 0:3:13]} c3 {[%emt 0:0:22]} 48. Ke2 {[%emt 0:0:20]} Qb5+ {[%emt 0:2:18]} 49. Ke1 {[%emt 0:1:56]} Qb4 {[%emt 0:1:56]} 50. Kd1 {[%emt 0:1:2]} Qd4+ {[%emt 0:1:30]} 51. Ke2 {[%emt 0:0:18]} Qe3+ {[%emt 0:0:47]} 52. Kf1 {[%emt 0:0:16]} Kh6 {[%emt 0:2:8]} 53. Qd1 {[%emt 0:0:50]} Qb6 {[%emt 0:0:45]} 54. Qc1 {[%emt 0:1:5]} Qb5+ {[%emt 0:0:38]} 55. Ke1 {[%emt 0:0:9]} Qe5+ {[%emt 0:1:4]} 56. Kd1 {[%emt 0:0:27]} Qe3 {[%emt 0:1:0]} 57. Kc2 {[%emt 0:0:28]} Kg5 {[%emt 0:1:27]} 58. Qd1 {[%emt 0:1:28]} Qf2+ {[%emt 0:2:27]} 59. Kxc3 {[%emt 0:0:7]} Qxg2 {[%emt 0:0:13]} 60. Qd5+ {[%emt 0:0:13]} Kh6 {[%emt 0:0:22]} 61. Qe4 {[%emt 0:16:14]} Qg5 {[%emt 0:16:45]} 62. Kd3 {[%emt 0:1:4]} Qb5+ {[%emt 0:1:32]} 63. Kd2 {[%emt 0:0:58]} Qb2+ {[%emt 0:0:21]} 64. Kd1 {[%emt 0:0:18]} Qb3+ {[%emt 0:2:9]} 65. Kd2 {[%emt 0:0:31]} Qb2+ {[%emt 0:0:48]} 66. Kd1 {[%emt 0:0:9]} Qe5 {[%emt 0:0:33]} 67. Qc4 {[%emt 0:0:47]} Qe3 {[%emt 0:0:58]} 68. Qd5 {[%emt 0:0:20]} Qg1+ {[%emt 0:0:28]} 69. Kc2 {[%emt 0:0:30]} Qg2+ {[%emt 0:0:17]} 70. Kb3 {[%emt 0:0:11]} Qxh3 {[%emt 0:0:12]} 71. Qa8 {[%emt 0:0:21]} Qg2 {[%emt 0:1:23]} 72. Qf8+ {[%emt 0:0:16]} Kh5 {[%emt 0:0:45]} 73. Qc5+ {[%emt 0:0:33]} Qg5 {[%emt 0:0:27]} 74. Qc8 {[%emt 0:1:12]} Qd5+ {[%emt 0:0:24]} 75. Ka4 {[%emt 0:0:0]} Qxf3 {[%emt 0:0:30]} 76. Qh8+ {[%emt 0:0:8]} Kg5 {[%emt 0:0:9]} 77. Qd8 {[%emt 0:0:9]} Qe4+ {[%emt 0:0:29]} 78. Ka5 {[%emt 0:0:8]} h3 {[%emt 0:0:29]} 0-1

[Event "57th Biel Festival MTO 2024"]
[White "Monteverde,Jonathan"]
[Black "Saravanan,V.."]
[Site "Biel"]
[Round "3.39"]
[Annotator "RC"]
[Result "0-1"]
[Date "2024.07.17"]
[WhiteElo "2052"]
[BlackElo "2266"]
[PlyCount "58"]
[TimeControl "60"]

1. d4 {[%emt 0:0:5]} Nf6 {[%emt 0:0:10]} 2. c4 {[%emt 0:0:4]} e6 {[%emt 0:0:20]} 3. Nc3 {[%emt 0:0:14]} Bb4 {[%emt 0:0:6]} 4. Qc2 {[%emt 0:0:9]} O-O {[%emt 0:0:9]} 5. Nf3 {[%emt 0:0:10]} d5 {[%emt 0:0:23]} 6. Bg5 {[%emt 0:2:30]} h6 {[%emt 0:0:10]} 7. Bh4 {[%emt 0:1:19]} dxc4 {[%emt 0:3:19]} 8. e4 {[%emt 0:1:59]} g5 {[%emt 0:1:12]} 9. Bg3 {[%emt 0:21:11]} b5 {[%emt 0:1:55]} 10. O-O-O {[%emt 0:9:40]} Bxc3 {[%emt 0:11:14]} 11. bxc3 {[%emt 0:0:18]} Qe7 {[%emt 0:0:18]} 12. h4 {[%emt 0:18:38]} Qa3+ {[%emt 0:3:45]} 13. Kb1 {[%emt 0:4:14]} g4 {[%emt 0:7:35]} 14. Ng5 {[%emt 0:1:57]} b4 {[%emt 0:19:19]} 15. cxb4 {[%emt 0:5:24]} Nc6 {[%emt 0:7:14]} 16. e5 {[%emt 0:12:31]} Nxb4 {[%emt 0:3:47]} 17. Qb2 {[%emt 0:0:11]} Qxb2+ {[%emt 0:8:19]} 18. Kxb2 {[%emt 0:0:4]} c3+ {[%emt 0:0:8]} 19. Kc1 {[%emt 0:9:26]} Nfd5 {[%emt 0:10:51]} 20. Ne4 {[%emt 0:10:22]} Nxa2+ {[%emt 0:0:39]} 21. Kc2 {[%emt 0:0:18]} Rb8 {[%emt 0:6:13]} 22. Rb1 {[%emt 0:0:30]} Bd7 {[%emt 0:0:18]} 23. Bc4 {[%emt 0:5:39]} Ba4+ {[%emt 0:11:39]} 24. Kd3 {[%emt 0:0:5]} Rxb1 {[%emt 0:0:19]} 25. Rxb1 {[%emt 0:0:12]} c2 {[%emt 0:0:5]} 26. Bxa2 {[%emt 0:0:40]} cxb1=Q+ {[%emt 0:0:9]} 27. Bxb1 {[%emt 0:0:10]} Rb8 {[%emt 0:0:5]} 28. Nd2 {[%emt 0:1:13]} Rb2 {[%emt 0:0:6]} 29. f3 {[%emt 0:0:50]} Bb5+ {[%emt 0:0:28]} 0-1

[Event "57th Biel Festival MTO 2024"]
[White "Chen,Muxi"]
[Black "Collin,Moritz Valentin"]
[Site "Biel"]
[Round "3.40"]
[Annotator "RC"]
[Result "0-1"]
[Date "2024.07.17"]
[WhiteElo "1954"]
[BlackElo "2312"]
[PlyCount "78"]
[TimeControl "60"]

1. e4 {[%emt 0:0:3]} c5 {[%emt 0:0:12]} 2. Nf3 {[%emt 0:0:17]} e6 {[%emt 0:0:5]} 3. d4 {[%emt 0:0:6]} cxd4 {[%emt 0:0:5]} 4. Nxd4 {[%emt 0:0:3]} Nc6 {[%emt 0:0:8]} 5. a3 {[%emt 0:0:35]} Nf6 {[%emt 0:0:53]} 6. Nc3 {[%emt 0:0:7]} Qc7 {[%emt 0:0:42]} 7. Be3 {[%emt 0:10:19]} a6 {[%emt 0:0:40]} 8. f4 {[%emt 0:5:28]} Nxd4 {[%emt 0:16:7]} 9. Qxd4 {[%emt 0:2:41]} Ng4 {[%emt 0:2:14]} 10. Qb6 {[%emt 0:12:23]} Bd6 {[%emt 0:8:1]} 11. e5 {[%emt 0:4:50]} Nxe3 {[%emt 0:0:33]} 12. Qxe3 {[%emt 0:0:5]} Be7 {[%emt 0:4:14]} 13. O-O-O {[%emt 0:21:53]} d6 {[%emt 0:5:0]} 14. exd6 {[%emt 0:20:38]} Bxd6 {[%emt 0:1:4]} 15. Bb5+ {[%emt 0:6:34]} Kf8 {[%emt 0:2:8]} 16. Rxd6 {[%emt 0:1:21]} Qxd6 {[%emt 0:0:27]} 17. Rd1 {[%emt 0:0:13]} Qe7 {[%emt 0:7:46]} 18. Qd4 {[%emt 0:3:37]} axb5 {[%emt 0:13:55]} 19. Qd8+ {[%emt 0:0:49]} Qxd8 {[%emt 0:1:24]} 20. Rxd8+ {[%emt 0:0:11]} Ke7 {[%emt 0:0:5]} 21. Rxh8 {[%emt 0:0:6]} h6 {[%emt 0:2:1]} 22. Nxb5 {[%emt 0:0:19]} b6 {[%emt 0:2:12]} 23. g3 {[%emt 0:1:28]} Bb7 {[%emt 0:0:47]} 24. Rxa8 {[%emt 0:0:11]} Bxa8 {[%emt 0:0:9]} 25. Kd2 {[%emt 0:0:31]} g5 {[%emt 0:5:36]} 26. Ke3 {[%emt 0:1:30]} f6 {[%emt 0:5:42]} 27. Kd4 {[%emt 0:1:14]} Bc6 {[%emt 0:9:12]} 28. c4 {[%emt 0:0:37]} Kf7 {[%emt 0:1:34]} 29. Nd6+ {[%emt 0:2:26]} Kg6 {[%emt 0:0:16]} 30. Nc8 {[%emt 0:0:11]} Kh5 {[%emt 0:5:12]} 31. Nxb6 {[%emt 0:5:1]} Kg4 {[%emt 0:0:37]} 32. Ke3 {[%emt 0:0:48]} Kh3 {[%emt 0:0:54]} 33. a4 {[%emt 0:1:20]} Kxh2 {[%emt 0:0:35]} 34. Kf2 {[%emt 0:0:8]} g4 {[%emt 0:4:4]} 35. c5 {[%emt 0:6:47]} h5 {[%emt 0:0:47]} 36. Nc4 {[%emt 0:0:29]} h4 {[%emt 0:0:25]} 37. Ne3 {[%emt 0:0:44]} hxg3+ {[%emt 0:0:12]} 38. Ke2 {[%emt 0:0:33]} g2 {[%emt 0:2:39]} 39. Nxg2 {[%emt 0:0:23]} Kxg2 {[%emt 0:0:42]} 0-1

[Event "57th Biel Festival MTO 2024"]
[White "Jaggy,Matteo"]
[Black "Pouly,Ivan"]
[Site "Biel"]
[Round "3.41"]
[Annotator "RC"]
[Result "1-0"]
[Date "2024.07.17"]
[WhiteElo "2211"]
[BlackElo "1958"]
[PlyCount "99"]
[TimeControl "60"]

1. d4 {[%emt 0:0:5]} d5 {[%emt 0:0:25]} 2. Bf4 {[%emt 0:1:2]} Nf6 {[%emt 0:0:11]} 3. e3 {[%emt 0:0:5]} c6 {[%emt 0:0:32]} 4. c3 {[%emt 0:3:12]} Bf5 {[%emt 0:1:18]} 5. Nd2 {[%emt 0:0:58]} e6 {[%emt 0:0:19]} 6. Ngf3 {[%emt 0:2:12]} Bd6 {[%emt 0:0:26]} 7. Ne5 {[%emt 0:2:5]} h6 {[%emt 0:2:35]} 8. h4 {[%emt 0:4:4]} Qc7 {[%emt 0:1:16]} 9. g4 {[%emt 0:9:41]} Be4 {[%emt 0:2:5]} 10. f3 {[%emt 0:15:9]} Bh7 {[%emt 0:1:43]} 11. Qe2 {[%emt 0:15:43]} Nbd7 {[%emt 0:10:35]} 12. Nxd7 {[%emt 0:4:1]} Nxd7 {[%emt 0:0:22]} 13. Bxd6 {[%emt 0:6:55]} Qxd6 {[%emt 0:0:7]} 14. Qh2 {[%emt 0:3:26]} Qxh2 {[%emt 0:3:4]} 15. Rxh2 {[%emt 0:0:5]} O-O-O {[%emt 0:1:27]} 16. b4 {[%emt 0:5:21]} e5 {[%emt 0:2:40]} 17. Nb3 {[%emt 0:2:9]} Rhe8 {[%emt 0:0:43]} 18. Kd2 {[%emt 0:0:51]} Re7 {[%emt 0:1:9]} 19. Nc5 {[%emt 0:6:14]} Rde8 {[%emt 0:4:41]} 20. Nxd7 {[%emt 0:1:26]} Kxd7 {[%emt 0:0:16]} 21. Re1 {[%emt 0:0:38]} exd4 {[%emt 0:6:35]} 22. cxd4 {[%emt 0:0:9]} Kd6 {[%emt 0:0:10]} 23. Bd3 {[%emt 0:0:59]} Bxd3 {[%emt 0:0:13]} 24. Kxd3 {[%emt 0:0:5]} a5 {[%emt 0:1:8]} 25. Rb2 {[%emt 0:4:56]} axb4 {[%emt 0:2:20]} 26. Rxb4 {[%emt 0:0:7]} b5 {[%emt 0:0:11]} 27. a4 {[%emt 0:3:19]} bxa4 {[%emt 0:0:7]} 28. Rxa4 {[%emt 0:0:5]} Rb8 {[%emt 0:0:8]} 29. Ra2 {[%emt 0:1:13]} Rb3+ {[%emt 0:0:52]} 30. Kd2 {[%emt 0:0:8]} Reb7 {[%emt 0:0:46]} 31. Rc2 {[%emt 0:1:52]} Rb2 {[%emt 0:2:12]} 32. Ra1 {[%emt 0:6:19]} R7b3 {[%emt 0:11:40]} 33. Ra7 {[%emt 0:1:17]} Rxc2+ {[%emt 0:0:17]} 34. Kxc2 {[%emt 0:0:7]} Rxe3 {[%emt 0:0:6]} 35. Rxf7 {[%emt 0:0:9]} Re7 {[%emt 0:0:6]} 36. Rxe7 {[%emt 0:6:6]} Kxe7 {[%emt 0:0:10]} 37. Kc3 {[%emt 0:3:1]} g5 {[%emt 0:3:53]} 38. h5 {[%emt 0:0:8]} Ke6 {[%emt 0:6:18]} 39. Kd3 {[%emt 0:1:5]} Kf6 {[%emt 0:1:48]} 40. Ke3 {[%emt 0:0:16]} Ke6 {[%emt 0:0:23]} 41. Kd2 {[%emt 0:8:15]} Kf6 {[%emt 0:1:45]} 42. Kd3 {[%emt 0:3:48]} Ke6 {[%emt 0:0:54]} 43. Kc3 {[%emt 0:0:15]} Ke7 {[%emt 0:0:14]} 44. Kd3 {[%emt 0:2:41]} Ke6 {[%emt 0:0:42]} 45. Ke3 {[%emt 0:0:10]} Kf6 {[%emt 0:0:8]} 46. f4 {[%emt 0:6:14]} gxf4+ {[%emt 0:0:7]} 47. Kxf4 {[%emt 0:0:4]} Ke6 {[%emt 0:0:34]} 48. g5 {[%emt 0:0:52]} hxg5+ {[%emt 0:0:21]} 49. Kxg5 {[%emt 0:0:7]} Kf7 {[%emt 0:0:6]} 50. Kf5 {[%emt 0:1:4]} 1-0

[Event "57th Biel Festival MTO 2024"]
[White "Liu,Kimberly"]
[Black "Balabayeva,Xeniya"]
[Site "Biel"]
[Round "3.42"]
[Annotator "RC"]
[Result "0-1"]
[Date "2024.07.17"]
[WhiteElo "1941"]
[BlackElo "2246"]
[PlyCount "46"]
[TimeControl "60"]

1. e4 {[%emt 0:1:13]} c6 {[%emt 0:0:30]} 2. d4 {[%emt 0:0:6]} d5 {[%emt 0:0:6]} 3. e5 {[%emt 0:0:7]} Bf5 {[%emt 0:0:11]} 4. h4 {[%emt 0:0:8]} h5 {[%emt 0:0:14]} 5. Bd3 {[%emt 0:0:13]} Bxd3 {[%emt 0:1:4]} 6. Qxd3 {[%emt 0:0:7]} Qa5+ {[%emt 0:0:11]} 7. Nd2 {[%emt 0:0:57]} Qa6 {[%emt 0:0:14]} 8. c4 {[%emt 0:1:13]} e6 {[%emt 0:1:48]} 9. Ne2 {[%emt 0:3:42]} Nd7 {[%emt 0:8:8]} 10. b3 {[%emt 0:13:11]} Bb4 {[%emt 0:15:6]} 11. O-O {[%emt 0:6:45]} Rd8 {[%emt 0:2:10]} 12. Nf3 {[%emt 0:18:33]} Nb6 {[%emt 0:13:31]} 13. Bg5 {[%emt 0:6:35]} Be7 {[%emt 0:4:14]} 14. Rfc1 {[%emt 0:15:23]} Nh6 {[%emt 0:10:59]} 15. Nf4 {[%emt 0:5:40]} Nf5 {[%emt 0:3:19]} 16. Nxh5 {[%emt 0:6:3]} dxc4 {[%emt 0:4:0]} 17. bxc4 {[%emt 0:1:1]} Rxh5 {[%emt 0:0:46]} 18. g4 {[%emt 0:2:5]} Rxg5 {[%emt 0:1:15]} 19. hxg5 {[%emt 0:15:51]} Nxd4 {[%emt 0:1:1]} 20. Nxd4 {[%emt 0:3:43]} c5 {[%emt 0:0:8]} 21. Qh7 {[%emt 0:1:1]} Rxd4 {[%emt 0:0:11]} 22. Qxg7 {[%emt 0:0:30]} Rxg4+ {[%emt 0:0:15]} 23. Kh1 {[%emt 0:1:34]} Qa3 {[%emt 0:0:16]} 0-1

[Event "57th Biel Festival MTO 2024"]
[White "Haugner,Jan"]
[Black "Krishnan,Ritvik"]
[Site "Biel"]
[Round "3.43"]
[Annotator "RC"]
[Result "1-0"]
[Date "2024.07.17"]
[WhiteElo "2072"]
[BlackElo "2297"]
[PlyCount "97"]
[TimeControl "60"]

1. e4 {[%emt 0:0:2]} c5 {[%emt 0:0:6]} 2. Nf3 {[%emt 0:0:5]} d6 {[%emt 0:0:5]} 3. d4 {[%emt 0:0:4]} cxd4 {[%emt 0:0:3]} 4. Nxd4 {[%emt 0:0:5]} Nf6 {[%emt 0:0:5]} 5. Nc3 {[%emt 0:0:5]} Nc6 {[%emt 0:0:5]} 6. Bg5 {[%emt 0:0:5]} e6 {[%emt 0:0:3]} 7. Bb5 {[%emt 0:0:4]} Bd7 {[%emt 0:0:11]} 8. Qd3 {[%emt 0:0:7]} Be7 {[%emt 0:1:5]} 9. O-O-O {[%emt 0:0:31]} O-O {[%emt 0:1:50]} 10. Bxc6 {[%emt 0:0:19]} bxc6 {[%emt 0:0:25]} 11. Nb3 {[%emt 0:0:14]} Qb6 {[%emt 0:18:14]} 12. Bxf6 {[%emt 0:19:22]} gxf6 {[%emt 0:2:8]} 13. Qg3+ {[%emt 0:0:6]} Kh8 {[%emt 0:0:2]} 14. Rxd6 {[%emt 0:0:33]} Rg8 {[%emt 0:7:14]} 15. Qd3 {[%emt 0:0:14]} Bxd6 {[%emt 0:0:42]} 16. Qxd6 {[%emt 0:0:7]} Rad8 {[%emt 0:2:3]} 17. Qf4 {[%emt 0:22:22]} Rg6 {[%emt 0:14:17]} 18. Na4 {[%emt 0:19:11]} Qb8 {[%emt 0:4:25]} 19. Qxb8 {[%emt 0:1:19]} Rxb8 {[%emt 0:0:2]} 20. Nac5 {[%emt 0:6:26]} Be8 {[%emt 0:1:36]} 21. g3 {[%emt 0:0:39]} Kg7 {[%emt 0:9:54]} 22. Rd1 {[%emt 0:3:4]} Rc8 {[%emt 0:2:19]} 23. Na5 {[%emt 0:3:53]} Kf8 {[%emt 0:3:51]} 24. h4 {[%emt 0:4:40]} f5 {[%emt 0:14:22]} 25. Rg1 {[%emt 0:17:50]} fxe4 {[%emt 0:5:26]} 26. Nxe4 {[%emt 0:0:2]} Ke7 {[%emt 0:1:53]} 27. Nc4 {[%emt 0:3:44]} Rd8 {[%emt 0:3:18]} 28. Re1 {[%emt 0:1:31]} Rd4 {[%emt 0:5:19]} 29. Ne5 {[%emt 0:2:5]} Rg7 {[%emt 0:0:25]} 30. Nf3 {[%emt 0:1:9]} Rb4 {[%emt 0:2:31]} 31. a3 {[%emt 0:1:6]} Rb8 {[%emt 0:0:25]} 32. Nc5 {[%emt 0:0:37]} Rg4 {[%emt 0:1:14]} 33. c3 {[%emt 0:0:48]} Rc4 {[%emt 0:2:11]} 34. Nd3 {[%emt 0:0:33]} Rd8 {[%emt 0:1:18]} 35. Nfe5 {[%emt 0:1:21]} Ra4 {[%emt 0:0:3]} 36. Nc5 {[%emt 0:0:50]} Ra5 {[%emt 0:2:2]} 37. Nb7 {[%emt 0:0:16]} Rxe5 {[%emt 0:2:57]} 38. Rxe5 {[%emt 0:0:2]} Rd3 {[%emt 0:0:41]} 39. Ra5 {[%emt 0:2:52]} Rf3 {[%emt 0:0:46]} 40. Rxa7 {[%emt 0:0:11]} Rxf2 {[%emt 0:0:20]} 41. Nc5+ {[%emt 0:50:10]} Kf8 {[%emt 0:50:47]} 42. a4 {[%emt 0:0:0]} e5 {[%emt 0:0:0]} 43. a5 {[%emt 0:0:0]} Rf1+ {[%emt 0:0:0]} 44. Kc2 {[%emt 0:0:0]} f6 {[%emt 0:0:0]} 45. Ne6+ {[%emt 0:0:0]} Kg8 {[%emt 0:0:0]} 46. Rg7+ {[%emt 0:0:0]} Kh8 {[%emt 0:0:0]} 47. Rb7 {[%emt 0:0:0]} Bg6+ {[%emt 0:0:0]} 48. Kd2 {[%emt 0:0:0]} Kg8 {[%emt 0:0:0]} 49. a6 {[%emt 0:0:0]} 1-0

[Event "57th Biel Festival MTO 2024"]
[White "Khulan,Enkhsaikhan"]
[Black "Kolbus,Dietmar"]
[Site "Biel"]
[Round "3.44"]
[Annotator "RC"]
[Result "0-1"]
[Date "2024.07.17"]
[WhiteElo "2063"]
[BlackElo "2234"]
[PlyCount "176"]
[TimeControl "60"]

1. d4 {[%emt 0:0:3]} Nf6 {[%emt 0:3:55]} 2. c4 {[%emt 0:0:17]} g6 {[%emt 0:0:11]} 3. Nc3 {[%emt 0:0:9]} Bg7 {[%emt 0:0:23]} 4. Nf3 {[%emt 0:0:17]} d6 {[%emt 0:0:53]} 5. g3 {[%emt 0:0:18]} c6 {[%emt 0:4:2]} 6. Bg2 {[%emt 0:0:44]} O-O {[%emt 0:0:23]} 7. O-O {[%emt 0:0:26]} Qc7 {[%emt 0:1:20]} 8. Qc2 {[%emt 0:1:45]} Nbd7 {[%emt 0:5:33]} 9. b3 {[%emt 0:1:26]} Re8 {[%emt 0:0:42]} 10. Bb2 {[%emt 0:2:6]} b6 {[%emt 0:5:1]} 11. Rfd1 {[%emt 0:2:23]} Bb7 {[%emt 0:2:23]} 12. Rac1 {[%emt 0:2:23]} Rac8 {[%emt 0:4:29]} 13. e4 {[%emt 0:2:29]} e5 {[%emt 0:0:31]} 14. Ba3 {[%emt 0:3:4]} Bf8 {[%emt 0:0:31]} 15. Qd2 {[%emt 0:5:1]} Rcd8 {[%emt 0:1:23]} 16. d5 {[%emt 0:2:16]} c5 {[%emt 0:0:20]} 17. Nh4 {[%emt 0:2:15]} Bg7 {[%emt 0:9:9]} 18. Rc2 {[%emt 0:5:45]} Nf8 {[%emt 0:1:17]} 19. b4 {[%emt 0:2:37]} N6d7 {[%emt 0:3:51]} 20. Nb5 {[%emt 0:5:24]} Qb8 {[%emt 0:0:9]} 21. bxc5 {[%emt 0:0:28]} Nxc5 {[%emt 0:0:18]} 22. Bxc5 {[%emt 0:0:36]} dxc5 {[%emt 0:2:46]} 23. Qc1 {[%emt 0:1:17]} Ba6 {[%emt 0:3:37]} 24. a4 {[%emt 0:2:33]} Bxb5 {[%emt 0:2:27]} 25. axb5 {[%emt 0:2:20]} Qc8 {[%emt 0:6:6]} 26. Ra2 {[%emt 0:0:51]} Qd7 {[%emt 0:0:15]} 27. Rd3 {[%emt 0:1:27]} Rb8 {[%emt 0:1:15]} 28. Rda3 {[%emt 0:1:38]} Rb7 {[%emt 0:0:13]} 29. Qf1 {[%emt 0:2:15]} Ra8 {[%emt 0:2:17]} 30. Bh3 {[%emt 0:0:45]} Qd6 {[%emt 0:0:16]} 31. Ra6 {[%emt 0:0:41]} h6 {[%emt 0:1:2]} 32. f4 {[%emt 0:3:29]} Re7 {[%emt 0:1:35]} 33. f5 {[%emt 0:0:39]} Bf6 {[%emt 0:2:29]} 34. Nf3 {[%emt 0:5:39]} g5 {[%emt 0:0:35]} 35. Bg4 {[%emt 0:1:22]} Nh7 {[%emt 0:3:33]} 36. h4 {[%emt 0:5:40]} gxh4 {[%emt 0:1:47]} 37. gxh4 {[%emt 0:0:10]} Kh8 {[%emt 0:1:21]} 38. Qa1 {[%emt 0:2:2]} Rg8 {[%emt 0:1:9]} 39. Rg2 {[%emt 0:0:15]} Qb8 {[%emt 0:0:28]} 40. Qc1 {[%emt 0:1:47]} Qf8 {[%emt 0:3:40]} 41. Qd2 {[%emt 0:55:0]} Rd7 {[%emt 0:51:1]} 42. Qa2 {[%emt 0:1:3]} Qe7 {[%emt 0:0:30]} 43. Bh3 {[%emt 0:6:36]} Rxg2+ {[%emt 0:0:40]} 44. Kxg2 {[%emt 0:0:29]} Rb7 {[%emt 0:1:54]} 45. Qd2 {[%emt 0:1:2]} Qf8 {[%emt 0:1:25]} 46. Kh2 {[%emt 0:1:12]} Rd7 {[%emt 0:0:21]} 47. Kh1 {[%emt 0:1:44]} Rb7 {[%emt 0:2:0]} 48. Qc1 {[%emt 0:1:40]} Rd7 {[%emt 0:0:0]} 49. Qa1 {[%emt 0:0:52]} Qe7 {[%emt 0:0:0]} 50. Nh2 {[%emt 0:1:10]} Rb7 {[%emt 0:0:0]} 51. Nf3 {[%emt 0:3:9]} Rd7 {[%emt 0:0:18]} 52. Ra2 {[%emt 0:0:41]} Rb7 {[%emt 0:0:31]} 53. Nh2 {[%emt 0:3:54]} Bxh4 {[%emt 0:6:27]} 54. Ng4 {[%emt 0:4:13]} Bg3 {[%emt 0:0:14]} 55. f6 {[%emt 0:3:40]} Nxf6 {[%emt 0:18:7]} 56. Nxh6 {[%emt 0:1:39]} Nxe4 {[%emt 0:0:10]} 57. Nf5 {[%emt 0:1:31]} Qg5 {[%emt 0:0:8]} 58. Rg2 {[%emt 0:1:11]} Nf2+ {[%emt 0:0:0]} 59. Rxf2 {[%emt 0:0:0]} Bxf2 {[%emt 0:0:0]} 60. Qxe5+ {[%emt 0:0:0]} f6 {[%emt 0:0:0]} 61. Qh2 {[%emt 0:0:0]} Bd4 {[%emt 0:0:0]} 62. Nxd4 {[%emt 0:0:0]} Qc1+ {[%emt 0:0:0]} 63. Qg1 {[%emt 0:0:0]} Qxg1+ {[%emt 0:0:0]} 64. Kxg1 {[%emt 0:0:0]} cxd4 {[%emt 0:0:0]} 65. d6 {[%emt 0:0:0]} Rb8 {[%emt 0:0:0]} 66. Kf2 {[%emt 0:0:0]} Rd8 {[%emt 0:0:0]} 67. d7 {[%emt 0:0:0]} Kg7 {[%emt 0:0:0]} 68. Kf3 {[%emt 0:0:0]} Kf7 {[%emt 0:0:0]} 69. Ke4 {[%emt 0:0:0]} Ke7 {[%emt 0:0:0]} 70. Kxd4 {[%emt 0:0:0]} Kd6 {[%emt 0:0:0]} 71. Bf5 {[%emt 0:0:0]} Rh8 {[%emt 0:0:0]} 72. Bg4 {[%emt 0:0:0]} Rg8 {[%emt 0:0:0]} 73. Bh3 {[%emt 0:0:0]} Kc7 {[%emt 0:1:27]} 74. Kd5 {[%emt 0:0:0]} Rg3 {[%emt 0:0:19]} 75. Bf5 {[%emt 0:0:0]} Re3 {[%emt 0:0:10]} 76. Bg4 {[%emt 0:0:0]} Re5+ {[%emt 0:0:9]} 77. Kd4 {[%emt 0:0:0]} Kd8 {[%emt 0:1:15]} 78. Bh3 {[%emt 0:0:0]} Ke7 {[%emt 0:0:8]} 79. Bg4 {[%emt 0:0:0]} Rg5 {[%emt 0:0:8]} 80. Bh3 {[%emt 0:0:0]} Rh5 {[%emt 0:0:23]} 81. Be6 {[%emt 0:0:0]} Rc5 {[%emt 0:2:43]} 82. Bh3 {[%emt 0:0:0]} f5 {[%emt 0:0:17]} 83. Bg2 {[%emt 0:0:0]} Kxd7 {[%emt 0:0:7]} 84. Bd5 {[%emt 0:0:0]} Kd6 {[%emt 0:0:6]} 85. Bb7 {[%emt 0:0:0]} Re5 {[%emt 0:0:12]} 86. Bc6 {[%emt 0:0:0]} Re2 {[%emt 0:0:14]} 87. Bf3 {[%emt 0:0:0]} Rh2 {[%emt 0:0:11]} 88. Bd5 {[%emt 0:0:0]} Rh4+ {[%emt 0:0:6]} 0-1

[Event "57th Biel Festival MTO 2024"]
[White "Papaux,Steve"]
[Black "Panda,Barnabas"]
[Site "Biel"]
[Round "3.45"]
[Annotator "RC"]
[Result "1-0"]
[Date "2024.07.17"]
[WhiteElo "2188"]
[BlackElo "2074"]
[PlyCount "85"]
[TimeControl "60"]

1. e4 {[%emt 0:0:4]} c5 {[%emt 0:0:15]} 2. Nf3 {[%emt 0:0:4]} d6 {[%emt 0:0:10]} 3. d4 {[%emt 0:0:44]} cxd4 {[%emt 0:0:16]} 4. Nxd4 {[%emt 0:0:5]} Nf6 {[%emt 0:0:12]} 5. Nc3 {[%emt 0:1:35]} Nc6 {[%emt 0:0:36]} 6. Bc4 {[%emt 0:1:33]} e6 {[%emt 0:0:54]} 7. O-O {[%emt 0:0:40]} a6 {[%emt 0:3:32]} 8. Re1 {[%emt 0:6:8]} Nxd4 {[%emt 0:8:52]} 9. Qxd4 {[%emt 0:0:8]} Qc7 {[%emt 0:0:11]} 10. a4 {[%emt 0:7:27]} Be7 {[%emt 0:8:4]} 11. Bb3 {[%emt 0:3:45]} O-O {[%emt 0:2:38]} 12. a5 {[%emt 0:1:11]} Bd7 {[%emt 0:6:32]} 13. h3 {[%emt 0:7:57]} Rfd8 {[%emt 0:9:25]} 14. Be3 {[%emt 0:1:39]} Bc6 {[%emt 0:5:32]} 15. Qd2 {[%emt 0:2:48]} Rd7 {[%emt 0:5:59]} 16. Bb6 {[%emt 0:4:27]} Qc8 {[%emt 0:3:33]} 17. f4 {[%emt 0:19:24]} Qf8 {[%emt 0:10:35]} 18. Qf2 {[%emt 0:6:56]} Rc8 {[%emt 0:6:55]} 19. f5 {[%emt 0:4:35]} e5 {[%emt 0:0:52]} 20. Rad1 {[%emt 0:3:39]} Bd8 {[%emt 0:3:44]} 21. g4 {[%emt 0:1:53]} Bxb6 {[%emt 0:3:38]} 22. Qxb6 {[%emt 0:0:11]} Qe7 {[%emt 0:4:9]} 23. Re2 {[%emt 0:5:12]} Kh8 {[%emt 0:5:38]} 24. Kh2 {[%emt 0:2:25]} Ne8 {[%emt 0:7:42]} 25. Qe3 {[%emt 0:4:23]} Nf6 {[%emt 0:1:38]} 26. Red2 {[%emt 0:1:43]} Qd8 {[%emt 0:2:37]} 27. Qf3 {[%emt 0:2:42]} h6 {[%emt 0:2:52]} 28. h4 {[%emt 0:2:45]} Qxa5 {[%emt 0:1:40]} 29. g5 {[%emt 0:0:23]} Ng8 {[%emt 0:1:29]} 30. Qh5 {[%emt 0:4:26]} Qc7 {[%emt 0:1:48]} 31. gxh6 {[%emt 0:0:21]} Nxh6 {[%emt 0:1:1]} 32. f6 {[%emt 0:0:19]} Kh7 {[%emt 0:0:56]} 33. fxg7 {[%emt 0:0:8]} Rg8 {[%emt 0:0:40]} 34. Rg2 {[%emt 0:0:35]} d5 {[%emt 0:1:32]} 35. Nxd5 {[%emt 0:0:39]} Bxd5 {[%emt 0:0:19]} 36. Bxd5 {[%emt 0:0:5]} Qb6 {[%emt 0:0:41]} 37. Rdg1 {[%emt 0:1:26]} Qf6 {[%emt 0:0:37]} 38. Qg5 {[%emt 0:1:14]} Qf4+ {[%emt 0:0:56]} 39. Qxf4 {[%emt 0:0:58]} exf4 {[%emt 0:0:5]} 40. Rg5 {[%emt 0:0:26]} b6 {[%emt 0:1:0]} 41. c4 {[%emt 0:52:37]} b5 {[%emt 0:17:3]} 42. e5 {[%emt 0:0:0]} Rb8 {[%emt 0:0:14]} 43. Rh5 {[%emt 0:0:0]} 1-0